bitfinex-derivatives/quotes_ETHF0:USTF0_20250210
["timestamp","ask_amount","ask_price","bid_price","bid_amount"]
[1739151006428,3.7681,2617.0,2616.3,2.19071166]
[1739151006630,3.7681,2617.0,2616.4,0.5614]
[1739151007831,3.2078,2616.7,2616.4,0.5614]
[1739151008930,3.7681,2617.0,2616.4,0.5614]
[1739151009329,3.2078,2616.5,2616.4,0.5614]
[1739151009531,3.2078,2616.5,2616.2,0.5943]
[1739151011527,3.7681,2617.0,2616.3,2.19071166]
[1739151011723,3.7681,2617.0,2616.4,0.5759]
[1739151011933,3.2078,2617.0,2616.4,0.5759]
[1739151012436,3.2078,2617.0,2616.6,2.19071166]
[1739151012635,3.2078,2617.0,2616.7,0.5674]
[1739151014448,0.00573866,2617.2,2616.9,2.19071166]
[1739151014644,0.00573866,2617.2,2617.0,1.2068]
[1739151016039,3.7593,2617.9,2617.0,7.2068]
[1739151016247,3.7593,2617.9,2617.4,2.19071166]
[1739151016443,3.7593,2617.9,2617.5,0.5695]
[1739151017147,3.2078,2617.9,2617.5,0.5695]
[1739151017341,0.00573866,2618.0,2617.5,0.5695]
[1739151017750,3.2078,2617.7,2617.5,0.5695]
[1739151018142,3.2078,2617.7,2617.4,0.00573866]
[1739151019449,1.37324,2617.6,2617.4,0.00573866]
[1739151019647,1.85674,2617.6,2617.4,0.00573866]
[1739151019853,1.0928,2617.6,2617.4,0.00573866]
[1739151020041,0.6093,2617.6,2617.4,0.00573866]
[1739151020249,0.35829479,2617.9,2617.4,4.00845032]
[1739151020550,3.2078,2617.6,2617.4,0.00573866]
[1739151021547,0.76397,2617.5,2617.4,0.00573866]
[1739151021846,0.2806,2617.5,2617.4,0.00573866]
[1739151022645,1.04457,2617.5,2617.4,0.00573866]
[1739151022846,10.30601423,2617.5,2616.6,0.563]
[1739151023046,10.30601423,2617.5,2616.6,1.1442]
[1739151023047,3.2078,2616.9,2616.6,1.1442]
[1739151023554,3.2078,2617.2,2616.6,1.1442]
[1739151023755,3.2078,2616.9,2616.4,1.812]
[1739151024053,3.2078,2616.9,2616.6,0.00573866]
[1739151024249,3.97195,2616.9,2616.6,0.00573866]
[1739151024450,4.36860498,2616.8,2616.6,0.00573866]
[1739151024650,5.13278498,2616.8,2616.6,0.00573866]
[1739151024852,5.13279498,2616.8,2616.6,0.00573866]
[1739151025049,4.64950498,2616.8,2616.6,0.00573866]
[1739151025447,5.41367498,2616.8,2616.6,0.00573866]
[1739151026044,0.5592,2616.7,2616.6,0.00573866]
[1739151026443,4.54447882,2616.7,2616.6,0.00573866]
[1739151026849,5.30867882,2616.7,2616.6,0.00573866]
[1739151027151,4.54447882,2616.7,2616.6,0.00573866]
[1739151027354,3.2078,2616.9,2616.6,0.00573866]
[1739151027855,4.66529057,2616.8,2616.6,0.00573866]
[1739151028049,0.5592,2616.8,2616.6,0.00573866]
[1739151028254,3.2078,2616.9,2616.6,0.00573866]
[1739151029156,4.38790955,2616.8,2616.6,0.00573866]
[1739151029950,0.7642,2616.7,2616.6,0.00573866]
[1739151030157,5.15208955,2616.8,2616.6,0.00573866]
[1739151030956,4.38790955,2616.8,2616.6,0.00573866]
[1739151031153,1.0456,2616.7,2616.6,0.00573866]
[1739151031362,0.76425,2616.6,2616.0,0.5646]
[1739151031547,3.2078,2616.2,2616.0,0.5646]
[1739151033558,0.00573866,2616.4,2616.1,3.2078]
[1739151033747,0.00573866,2616.4,2616.3,2.19071166]
[1739151033952,0.00573866,2616.4,2616.3,42.99071166]
[1739151034354,0.00573866,2616.4,2616.3,2.19071166]
[1739151034854,0.00573866,2616.4,2616.3,42.99071166]
[1739151035454,0.00573866,2616.4,2616.3,2.19071166]
[1739151037852,3.2078,2617.4,2616.3,4.00271166]
[1739151038059,3.2078,2617.4,2617.0,2.19071166]
[1739151038256,3.2078,2617.4,2617.1,1.1423]
[1739151041156,3.2078,2617.4,2617.1,0.5716]
[1739151041361,3.2078,2617.4,2616.8,0.5539]
[1739151042269,3.2078,2617.0,2616.8,0.5539]
[1739151042465,3.2078,2617.0,2616.6,1.1535]
[1739151042773,4.10404804,2616.9,2616.6,0.5534]
[1739151043070,3.2078,2617.0,2616.6,0.5534]
[1739151045166,3.5902,2616.7,2615.8,2.19645032]
[1739151045471,3.2078,2616.2,2615.8,3.35555032]
[1739151048068,3.2078,2616.2,2615.8,0.00573866]
[1739151048270,4.82358242,2616.1,2615.8,0.00573866]
[1739151048865,0.5552,2616.0,2615.8,0.00573866]
[1739151049070,3.2078,2615.9,2615.8,0.00573866]
[1739151049272,7.19031603,2615.9,2615.8,0.00573866]
[1739151050170,7.95475603,2615.9,2615.8,0.00573866]
[1739151050567,7.19031603,2615.9,2615.8,0.00573866]
[1739151051171,7.95475603,2615.9,2615.8,0.00573866]
[1739151051569,7.19031603,2615.9,2615.8,0.00573866]
[1739151051967,7.95475603,2615.9,2615.8,0.00573866]
[1739151052172,7.95475603,2615.9,2614.8,0.02850421]
[1739151052173,0.76467,2615.2,2614.4,3.2078]
[1739151052369,3.97248,2615.1,2614.5,0.554]
[1739151052574,3.2078,2614.8,2614.5,0.554]
[1739151053575,3.97257,2614.8,2614.5,0.554]
[1739151053772,3.97257,2614.8,2614.4,0.00573866]
[1739151053773,0.76482,2614.6,2614.4,0.00573866]
[1739151053971,3.2078,2614.5,2614.4,0.00573866]
[1739151054173,8.30615233,2614.5,2613.9,3.2078]
[1739151054475,3.2078,2614.5,2613.9,3.2078]
[1739151054771,5.09839233,2614.4,2613.9,3.2078]
[1739151054975,3.2078,2614.2,2613.8,0.5974]
[1739151055571,4.79444142,2614.1,2613.8,0.5974]
[1739151055882,3.97284,2613.9,2613.3,0.579]
[1739151056079,3.2078,2613.9,2613.3,0.579]
[1739151056281,4.02270458,2613.8,2613.3,0.579]
[1739151056675,3.2078,2613.6,2613.2,1.2073]
[1739151056878,3.2078,2613.6,2612.6,2.81397642]
[1739151057080,3.2078,2613.4,2613.1,0.00573866]
[1739151059079,0.00573866,2613.5,2613.2,2.81397642]
[1739151059280,3.2078,2614.0,2613.4,3.2078]
[1739151059583,3.2078,2614.0,2613.5,2.81397642]
[1739151060386,3.21353866,2614.0,2613.3,1.812]
[1739151061778,3.21353866,2614.0,2613.5,2.81397642]
[1739151062083,0.00573866,2614.0,2613.8,2.81397642]
[1739151062285,3.2078,2614.4,2613.9,1.1522]
[1739151062877,3.2078,2614.4,2613.8,2.81397642]
[1739151062878,4.25138318,2614.3,2613.5,43.61397642]
[1739151063079,3.2078,2614.1,2613.5,43.61397642]
[1739151063480,3.21353866,2614.1,2613.5,43.61397642]
[1739151063886,3.21353866,2614.1,2613.5,2.81397642]
[1739151065488,0.00573866,2614.1,2613.5,2.81397642]
[1739151065884,5.12603586,2614.0,2613.4,0.5646]
[1739151066184,3.2078,2613.6,2613.2,0.5937]
[1739151066384,3.2078,2613.6,2612.9,6.02177642]
[1739151066583,3.2078,2613.3,2612.7,0.607]
[1739151066792,3.2078,2613.3,2612.6,6.58637642]
[1739151066989,3.2078,2613.3,2612.6,3.7724]
[1739151067290,4.87452885,2613.2,2612.6,0.5646]
[1739151067488,3.2078,2612.7,2612.6,0.5646]
[1739151067686,3.97317,2612.7,2611.7,2.81397642]
[1739151067886,3.2078,2612.4,2611.7,2.81397642]
[1739151068089,3.2078,2612.4,2611.4,4.62597642]
[1739151068289,3.2078,2612.4,2611.4,2.81397642]
[1739151068590,0.00573866,2612.2,2611.7,2.81397642]
[1739151068790,0.00286891,2612.2,2611.8,0.5957]
[1739151069691,3.2078,2612.1,2611.8,0.5957]
[1739151070785,4.30757483,2612.0,2611.6,0.00573866]
[1739151071284,3.2078,2611.8,2611.6,0.00573866]
[1739151072589,3.2078,2612.1,2611.6,0.00573866]
[1739151072985,3.2078,2611.8,2611.6,0.00573866]
[1739151073187,3.97345,2611.8,2611.6,0.00573866]
[1739151073394,4.42640597,2611.7,2611.6,0.00573866]
[1739151074191,3.2078,2612.1,2611.6,0.00573866]
[1739151074792,3.2078,2612.1,2611.6,0.58513866]
[1739151075592,0.00286891,2612.2,2611.7,2.81397642]
[1739151075800,0.00286891,2612.2,2612.0,2.81397642]
[1739151075994,3.2078,2612.7,2612.1,0.5744]
[1739151076300,3.2078,2612.7,2612.2,0.6023]
[1739151076600,3.2078,2612.7,2612.3,40.8]
[1739151076913,3.2078,2613.6,2612.6,6.02177642]
[1739151077116,3.2078,2613.9,2613.0,3.2078]
[1739151077321,4.30385481,2613.8,2613.2,2.81397642]
[1739151077610,0.00573866,2613.7,2613.3,3.2078]
[1739151077816,0.00573866,2613.7,2613.2,6.02751508]
[1739151078110,3.2078,2613.6,2613.2,0.00573866]
[1739151078308,7.37340185,2613.6,2613.2,0.00573866]
[1739151078710,3.2078,2613.3,2613.2,0.00573866]
[1739151079312,7.28355069,2613.3,2612.6,0.5599]
[1739151079512,3.2078,2613.0,2612.6,0.5599]
[1739151079913,3.2078,2612.7,2612.1,1.813]
[1739151080111,3.2078,2612.7,2612.0,3.2078]
[1739151080310,4.37685695,2612.6,2611.9,1.1605]
[1739151080510,4.37685695,2612.6,2612.1,0.00573866]
[1739151081316,3.2078,2612.7,2612.3,2.81397642]
[1739151081511,3.2078,2613.1,2612.3,7.83477642]
[1739151081912,3.2078,2613.1,2612.6,2.81397642]
[1739151082116,3.2078,2613.1,2612.7,0.5895]
[1739151082310,3.2078,2613.1,2612.7,1.1433]
[1739151083213,0.58033866,2613.7,2613.0,3.2078]
[1739151083214,3.2078,2613.6,2613.0,3.2078]
[1739151083426,0.00573866,2613.7,2613.2,2.81397642]
[1739151083719,3.2078,2613.6,2613.2,2.81397642]
[1739151084013,3.2078,2613.6,2613.0,3.2078]
[1739151084216,3.2078,2613.6,2613.2,2.81397642]
[1739151084415,0.00573866,2613.7,2613.2,2.81397642]
[1739151085109,0.00573866,2613.7,2613.3,3.2078]
[1739151085315,0.00573866,2613.7,2613.6,3.2078]
[1739151085520,0.00573866,2613.7,2613.5,2.81397642]
[1739151085714,0.00573866,2613.7,2613.6,0.5725]
[1739151085912,3.2078,2614.4,2613.6,3.7803]
[1739151086219,3.2078,2614.4,2613.6,0.5725]
[1739151086818,3.2078,2614.4,2613.6,3.7803]
[1739151087315,0.00573866,2614.3,2613.7,0.00573866]
[1739151089220,3.2078,2613.9,2613.7,0.00573866]
[1739151089421,3.2078,2614.2,2613.7,0.00573866]
[1739151089721,3.2078,2613.9,2613.7,0.00573866]
[1739151089921,3.2078,2614.2,2613.7,0.00573866]
[1739151090315,7.37810246,2614.2,2613.7,0.00573866]
[1739151090918,3.2078,2614.2,2613.7,0.00573866]
[1739151091120,0.00573866,2614.3,2613.7,0.00573866]
[1739151091824,3.2078,2614.2,2613.7,0.00573866]
[1739151092321,7.25896203,2614.2,2613.7,0.00573866]
[1739151093226,3.2078,2614.2,2613.7,0.00573866]
[1739151093625,0.00573866,2614.3,2613.7,0.00573866]
[1739151094326,3.2078,2614.2,2613.7,0.00573866]
[1739151095420,0.00573866,2614.3,2613.7,0.00573866]
[1739151097422,0.00573866,2614.3,2614.1,2.81397642]
[1739151097723,3.2078,2614.9,2614.2,2.3714]
[1739151097930,3.2078,2614.9,2614.3,3.2078]
[1739151098426,3.2078,2614.9,2614.3,3.7697]
[1739151098822,3.21353866,2614.9,2614.3,0.5619]
[1739151099016,3.2078,2614.6,2614.2,0.5594]
[1739151100326,3.21353866,2614.9,2614.2,0.5594]
[1739151100528,3.21353866,2614.9,2614.4,2.81397642]
[1739151100721,3.21353866,2614.9,2614.3,3.2078]
[1739151100722,3.2078,2614.6,2614.2,0.5594]
[1739151102228,0.76476,2614.8,2614.0,1.812]
[1739151102429,4.24666974,2614.5,2614.0,1.812]
[1739151102626,3.2078,2614.3,2614.0,1.812]
[1739151102829,3.2078,2614.3,2613.9,3.7839]
[1739151102830,3.2078,2614.3,2613.9,0.5761]
[1739151104422,3.2078,2614.3,2613.7,0.00573866]
[1739151107121,3.2078,2614.3,2613.7,3.21353866]
[1739151107326,0.5733,2614.7,2613.8,2.81397642]
[1739151107529,3.2078,2614.6,2613.8,2.81397642]
[1739151107826,7.26795286,2614.6,2613.8,2.81397642]
[1739151108034,8.03278286,2614.6,2613.8,2.81397642]
[1739151108326,8.03278286,2614.6,2613.9,40.8]
[1739151108526,4.06015286,2614.6,2614.1,2.81397642]
[1739151108726,0.00573866,2614.9,2614.4,2.81397642]
[1739151108926,3.2078,2615.1,2614.4,43.61397642]
[1739151109427,3.2078,2615.1,2614.2,1.13]
[1739151109631,3.2078,2614.8,2614.2,2.942]
[1739151110127,3.2078,2614.5,2613.8,2.81397642]
[1739151110929,4.18476005,2614.4,2613.7,0.00573866]
[1739151111233,3.2078,2613.8,2613.7,0.00573866]
[1739151111531,3.2078,2613.8,2613.1,0.5854]
[1739151111826,3.2078,2613.5,2613.1,0.5854]
[1739151112428,0.819,2613.7,2613.1,0.5854]
[1739151112829,4.30907897,2613.6,2613.1,0.5854]
[1739151113231,0.35883133,2614.0,2613.2,2.81397642]
[1739151113530,4.27819431,2613.9,2613.2,2.81397642]
[1739151113930,3.2078,2613.8,2613.2,2.81397642]
[1739151114734,3.2078,2614.1,2613.2,6.02177642]
[1739151115122,4.09244544,2614.0,2613.2,6.02177642]
[1739151115628,4.09244544,2614.0,2613.2,2.81397642]
[1739151115933,3.2078,2614.1,2613.2,6.02177642]
[1739151116530,3.2078,2614.1,2613.2,2.81397642]
[1739151116730,3.2078,2614.1,2613.1,0.5854]
[1739151116731,3.2078,2613.6,2613.1,0.5854]
[1739151117333,3.2078,2613.6,2613.0,0.00573866]
[1739151117531,4.87851082,2613.5,2613.0,0.00573866]
[1739151119333,0.5766,2613.5,2613.0,0.00573866]
[1739151119832,3.433,2613.9,2613.0,0.00573866]
[1739151120031,3.2078,2613.9,2613.2,2.81397642]
[1739151120234,3.2078,2613.9,2613.3,40.8]
[1739151120743,3.2078,2613.9,2613.4,0.602]
[1739151121035,4.06043149,2613.8,2613.4,0.602]
[1739151121240,3.2078,2613.6,2613.2,4.62597642]
[1739151121542,3.2078,2613.6,2613.2,1.812]
[1739151121741,3.2078,2613.9,2613.2,1.812]
[1739151121937,0.58403864,2614.3,2613.2,7.83377642]
[1739151122140,3.8193,2614.4,2613.5,6.02177642]
[1739151122335,3.8193,2614.4,2613.6,1.7727]
[1739151123143,4.58418,2614.4,2613.6,1.7727]
[1739151123343,3.2078,2614.1,2613.6,1.7727]
[1739151123735,3.2078,2614.1,2613.6,1.1676]
[1739151123938,3.2078,2613.8,2613.2,3.2078]
[1739151125444,3.97286,2613.8,2613.2,3.2078]
[1739151125747,4.94904462,2613.7,2613.0,0.61453866]
[1739151126543,3.2078,2613.5,2613.0,0.61453866]
[1739151126953,4.29681956,2613.4,2613.0,0.61453866]
[1739151129144,3.21353866,2613.5,2613.0,0.61453866]
[1739151129851,0.00573866,2613.5,2613.2,2.81397642]
[1739151130050,0.00573866,2613.5,2613.3,40.8]
[1739151130251,0.00573866,2613.5,2613.4,0.5545]
[1739151131147,0.00573866,2613.5,2613.4,3.7623]
[1739151131546,3.2078,2614.3,2613.4,50.5623]
[1739151131749,3.2078,2614.7,2614.1,2.81397642]
[1739151132052,0.35878637,2614.9,2614.3,3.2078]
[1739151132244,3.2078,2615.0,2614.3,3.2078]
[1739151132650,4.27726447,2614.9,2614.4,0.00573866]
[1739151132851,0.00573866,2614.9,2614.4,0.00573866]
[1739151133650,0.00573866,2614.9,2614.4,2.81971508]
[1739151134650,0.00573866,2614.9,2614.5,0.5738]
[1739151137250,0.00573866,2614.9,2614.7,2.81397642]
[1739151137750,0.00573866,2614.9,2614.5,0.5738]
[1739151138951,0.00573866,2614.9,2614.7,2.81397642]
[1739151139947,0.00573866,2614.9,2614.8,3.2078]
[1739151140955,3.2078,2615.7,2614.8,9.97253]
[1739151141161,3.2078,2615.7,2615.5,2.81397642]
[1739151141361,3.2078,2615.7,2615.6,0.5979]
[1739151141562,3.2078,2615.7,2615.6,1.1554]
[1739151141762,3.2078,2616.0,2615.6,1.1554]
[1739151142259,3.7816,2616.4,2615.6,1.1554]
[1739151142556,3.4383,2616.7,2615.8,2.81397642]
[1739151142952,3.2078,2616.3,2615.7,3.2078]
[1739151143962,3.2078,2616.0,2615.5,0.00573866]
[1739151144169,4.38049529,2616.2,2615.5,2.81971508]
[1739151144466,3.2078,2616.4,2616.1,2.81397642]
[1739151145862,3.2078,2616.8,2616.1,2.81397642]
[1739151148763,3.2078,2617.1,2616.2,3.2078]
[1739151148967,3.2078,2617.1,2615.9,1.811]
[1739151148968,3.2078,2617.1,2616.7,2.81397642]
[1739151149264,3.2078,2617.6,2616.7,2.81397642]
[1739151149562,4.18565047,2617.5,2616.7,2.81397642]
[1739151149764,4.18565047,2617.5,2616.9,0.00573866]
[1739151150259,3.2078,2617.4,2616.9,0.00573866]
[1739151150463,3.2078,2617.1,2616.9,0.00573866]
[1739151150859,7.3832035,2617.4,2616.9,0.00573866]
[1739151151166,3.2078,2617.4,2616.9,0.00573866]
[1739151152763,3.7791,2617.7,2617.0,2.81397642]
[1739151152965,3.7791,2617.7,2617.1,1.1441]
[1739151155265,3.2078,2617.7,2617.3,2.81397642]
[1739151156160,3.2078,2618.0,2617.3,2.81397642]
[1739151156366,3.2078,2617.5,2617.2,1.81]
[1739151156566,3.2078,2617.8,2617.2,1.81]
[1739151156963,0.2295,2618.1,2617.3,2.81397642]
[1739151157572,0.2295,2618.1,2617.4,40.8]
[1739151158470,0.2295,2618.1,2617.3,6.02177642]
[1739151159072,3.2078,2618.2,2617.3,6.02177642]
[1739151159567,3.2078,2618.2,2617.4,40.8]
[1739151160164,3.2078,2618.2,2617.3,6.02177642]
[1739151160767,3.2078,2618.2,2617.3,46.82177642]
[1739151161469,3.2078,2618.2,2617.6,6.02177642]
[1739151161769,3.2078,2618.2,2617.7,0.6054]
[1739151162074,3.2078,2618.2,2617.9,2.81397642]
[1739151163174,3.2078,2618.2,2617.8,2.9748]
[1739151163374,3.2078,2618.2,2617.8,2.4156]
[1739151163972,3.2078,2618.2,2617.9,2.81397642]
[1739151164273,3.2078,2618.5,2617.9,6.02177642]
[1739151164473,3.2078,2618.5,2618.2,2.81397642]
[1739151164676,3.2078,2618.5,2618.3,0.5916]
[1739151165078,3.2078,2618.8,2618.3,0.5916]
[1739151165476,7.40320922,2618.8,2618.3,0.5916]
[1739151165777,3.97142,2618.7,2618.3,0.00573866]
[1739151165977,3.2078,2618.7,2618.3,0.00573866]
[1739151166182,4.0704366,2618.6,2618.3,0.00573866]
[1739151170277,3.2078,2618.7,2618.3,0.00573866]
[1739151170477,3.2078,2619.0,2618.3,0.00573866]
[1739151170690,3.2078,2619.5,2618.5,6.02177642]
[1739151170884,3.2078,2619.5,2618.8,2.81397642]
[1739151171087,3.2078,2619.5,2618.8,43.61397642]
[1739151172481,3.2078,2619.5,2618.8,2.81397642]
[1739151172974,3.2078,2619.2,2618.7,1.808]
[1739151173175,3.2078,2619.2,2618.6,3.6007]
[1739151173981,3.2078,2619.5,2618.6,3.6007]
[1739151174180,3.2078,2619.9,2619.4,2.81397642]
[1739151174780,3.2078,2619.9,2619.4,2.81970402]
[1739151175883,3.2078,2620.2,2619.5,3.2078]
[1739151176383,3.2078,2620.2,2619.7,2.81397642]
[1739151176983,3.2078,2620.5,2619.7,2.81397642]
[1739151177286,4.37476678,2620.4,2619.7,2.81397642]
[1739151177688,3.2078,2620.5,2619.7,2.81397642]
[1739151178585,3.2078,2620.2,2619.5,3.2078]
[1739151179487,3.4366,2620.5,2619.7,2.81397642]
[1739151180392,3.2078,2620.5,2619.8,3.2078]
[1739151180692,3.2078,2620.5,2619.8,40.8]
[1739151180985,3.2078,2620.5,2619.9,0.5876]
[1739151181392,4.08895731,2620.4,2619.7,2.81397642]
[1739151181589,4.08895731,2620.4,2619.8,0.5876]
[1739151182590,3.2078,2620.5,2619.8,3.7954]
[1739151182885,0.2868,2621.2,2619.8,3.7954]
[1739151182886,3.2078,2620.8,2620.0,2.81397642]
[1739151183084,3.2078,2620.8,2620.3,2.81397642]
[1739151183287,3.2078,2620.8,2620.4,0.5876]
[1739151183483,3.2078,2620.5,2620.1,0.5537]
[1739151184498,3.2078,2620.5,2619.9,2.3946]
[1739151184797,3.2078,2620.2,2619.7,0.6085]
[1739151184988,3.2078,2619.8,2619.7,0.6085]
[1739151185896,3.2078,2619.8,2619.5,0.5782]
[1739151186193,3.2078,2619.8,2619.4,2.81970402]
[1739151186382,3.2078,2619.8,2619.4,0.0057276]
[1739151186787,4.08094021,2619.7,2619.4,0.0057276]
[1739151187184,3.2078,2619.5,2619.4,0.0057276]
[1739151187992,3.97118,2619.5,2619.4,0.0057276]
[1739151188190,8.04899605,2619.5,2618.8,2.81397642]
[1739151188390,3.2078,2619.1,2618.8,2.81397642]
[1739151188592,4.07781605,2619.5,2618.8,2.81397642]
[1739151188593,3.2078,2619.4,2618.8,2.81397642]
[1739151189299,3.2078,2619.4,2618.8,2.81970402]
[1739151195185,3.2078,2619.1,2618.8,2.81970402]
[1739151196193,3.2078,2619.5,2618.8,2.81970402]
[1739151196591,4.1168137,2619.4,2618.8,2.81970402]
[1739151197194,3.2078,2619.3,2618.8,2.81970402]
[1739151198901,3.2078,2619.0,2618.8,0.0057276]
[1739151200094,3.2078,2619.3,2618.8,0.0057276]
[1739151200289,3.97125,2619.3,2618.8,0.0057276]
[1739151200500,4.05842233,2619.2,2618.8,0.0057276]
[1739151200897,3.2078,2619.0,2618.8,0.0057276]
[1739151202206,3.2078,2619.3,2618.8,0.0057276]
[1739151202495,4.02069782,2619.2,2618.8,0.0057276]
[1739151202698,4.02069782,2619.2,2619.0,2.18954208]
[1739151202901,3.79499449,2619.7,2619.0,2.18954208]
[1739151203097,3.79499449,2619.7,2619.3,2.18954208]
[1739151203303,0.00569449,2619.7,2619.6,2.18954208]
[1739151203804,3.2078,2620.8,2619.9,2.18954208]
[1739151204102,3.2078,2620.8,2620.0,41.393]
[1739151204406,4.2122291,2620.7,2620.0,41.393]
[1739151204904,3.2078,2620.8,2620.0,41.393]
[1739151204905,3.2078,2620.8,2620.2,2.18954208]
[1739151205692,3.2078,2620.8,2620.1,0.0057276]
[1739151206094,4.26087441,2620.7,2620.1,0.0057276]
[1739151206497,3.2078,2620.4,2620.1,0.0057276]
[1739151206899,4.35568607,2620.3,2620.1,0.0057276]
[1739151207297,0.6067,2620.2,2620.1,0.0057276]
[1739151208702,3.2078,2620.4,2620.1,0.0057276]
[1739151209002,3.2078,2620.7,2620.1,0.0057276]
[1739151209399,3.2078,2620.7,2620.2,2.79994485]
[1739151209599,3.2078,2620.7,2620.3,0.5789]
[1739151209799,3.2078,2621.0,2620.3,0.5789]
[1739151210199,3.2078,2621.0,2620.3,41.3789]
[1739151211509,3.2078,2621.0,2620.5,2.79994485]
[1739151212299,3.2078,2621.7,2620.8,2.79994485]
[1739151212514,3.2078,2621.7,2620.9,0.5683]
[1739151212805,7.18634552,2621.4,2620.9,0.5683]
[1739151213006,3.2078,2621.4,2620.5,2.79994485]
[1739151213212,3.2078,2621.1,2620.5,3.36824485]
[1739151213612,3.2078,2621.1,2620.8,2.79994485]
[1739151213807,3.2078,2621.4,2620.8,2.79994485]
[1739151214609,3.2078,2621.1,2620.5,3.36824485]
[1739151215010,3.2078,2621.1,2620.6,1.806]
[1739151215309,3.2078,2621.1,2620.5,3.36824485]
[1739151215511,4.36269544,2621.0,2620.5,3.36824485]
[1739151217917,0.0062658,2620.8,2620.5,3.36824485]
[1739151219425,0.0062658,2620.8,2620.6,0.5995]
[1739151219824,3.2140658,2620.8,2620.5,3.36824485]
[1739151221322,0.0062658,2620.8,2620.5,3.36824485]
[1739151223826,0.0062658,2620.8,2620.5,0.5683]
[1739151226520,3.2140658,2620.8,2620.3,0.5789]
[1739151226825,3.2078,2620.5,2620.3,0.5789]
[1739151228022,3.2140658,2620.8,2620.3,0.5789]
[1739151228328,3.2078,2620.5,2620.3,0.5789]
[1739151228919,3.2140658,2620.8,2620.3,0.5789]
[1739151230317,3.2140658,2620.8,2620.4,0.6125]
[1739151230521,3.2140658,2620.8,2620.5,2.79994485]
[1739151230926,3.2140658,2620.8,2620.4,0.6125]
[1739151233729,3.2140658,2620.8,2620.4,2.79930273]
[1739151234736,3.2078,2620.5,2620.4,0.6125]
[1739151235222,3.2078,2620.5,2620.3,0.5789]
[1739151235427,3.2078,2620.5,2620.1,5.40033033]
[1739151236929,3.2078,2620.2,2620.1,0.0057276]
[1739151238534,3.2078,2620.5,2620.1,0.0057276]
[1739151239035,4.02392339,2620.4,2620.1,0.0057276]
[1739151240124,4.78704339,2620.4,2620.1,0.0057276]
[1739151240326,4.02392339,2620.4,2620.1,0.0057276]
[1739151240527,3.97098,2620.2,2620.1,0.0057276]
[1739151240925,7.31821189,2620.2,2620.1,0.0057276]
[1739151241133,0.5711,2620.7,2620.1,2.19253033]
[1739151241327,3.2078,2620.9,2620.4,2.18680273]
[1739151241727,3.2078,2620.6,2620.1,0.0057276]
[1739151242138,3.2078,2620.3,2620.1,0.0057276]
[1739151242536,4.02985917,2620.2,2620.1,0.0057276]
[1739151242938,3.2078,2620.3,2620.1,0.0057276]
[1739151243441,4.02985917,2620.2,2620.1,0.0057276]
[1739151243633,4.26465917,2620.2,2620.1,0.0057276]
[1739151243837,10.26465917,2620.2,2619.2,5.39460273]
[1739151244031,3.2078,2619.9,2619.2,2.18680273]
[1739151244335,3.2078,2619.7,2619.2,2.18680273]
[1739151244839,3.98796065,2619.6,2619.2,2.18680273]
[1739151245235,3.98796065,2619.6,2619.2,2.19253033]
[1739151246437,0.0057276,2619.7,2619.5,2.18680273]
[1739151246641,0.0057276,2619.7,2619.6,1.1539]
[1739151247232,0.0057276,2619.7,2619.2,5.40033033]
[1739151247540,0.0057276,2619.7,2619.2,2.19253033]
[1739151249738,3.2135276,2619.7,2619.2,2.19253033]
[1739151249933,4.33973223,2619.6,2619.2,2.19253033]
[1739151252647,3.2078,2619.3,2619.2,0.0057276]
[1739151254247,3.97117,2619.6,2619.2,0.0057276]
[1739151254444,3.2078,2619.6,2619.2,0.0057276]
[1739151254743,3.97124,2619.3,2618.3,2.18680273]
[1739151255046,3.2078,2618.8,2618.3,1.1827]
[1739151255647,3.2078,2618.8,2618.3,3.36950273]
[1739151255945,3.2078,2618.8,2618.3,3.37523033]
[1739151256546,4.26542816,2618.7,2618.3,3.37523033]
[1739151256740,4.26542816,2618.7,2618.3,1.1884276]
[1739151257343,4.26542816,2618.7,2618.3,3.37523033]
[1739151257549,3.2078,2618.8,2618.3,3.37523033]
[1739151258650,3.2078,2618.8,2618.3,1.1884276]
[1739151258651,4.40855068,2618.7,2618.3,1.1884276]
[1739151259847,3.2078,2618.8,2618.3,1.1884276]
[1739151260349,3.97151,2618.4,2618.3,0.0057276]
[1739151260649,3.2078,2618.4,2618.3,0.0057276]
[1739151267149,3.7725,2619.0,2618.3,2.19253033]
[1739151267349,3.2078,2619.0,2618.6,2.18680273]
[1739151267549,3.2078,2619.0,2618.7,0.5689]
[1739151267752,3.2078,2619.3,2618.7,0.5689]
[1739151268150,3.98134638,2619.2,2618.7,0.5689]
[1739151268546,6.61507,2619.6,2618.9,2.18680273]
[1739151268743,6.61507,2619.6,2619.0,0.5836]
[1739151268945,6.61507,2619.6,2619.0,1.19]
[1739151269544,3.2078,2619.3,2619.0,1.19]
[1739151270143,3.2078,2619.3,2618.7,0.5689]
[1739151270349,3.2078,2619.0,2618.6,1.1414]
[1739151270754,3.99626672,2619.2,2618.3,2.19253033]
[1739151270755,3.2078,2618.7,2618.3,2.19253033]
[1739151271256,1.05959625,2618.6,2618.3,0.0057276]
[1739151271452,3.2078,2618.4,2618.3,0.0057276]
[1739151276359,3.2078,2618.7,2618.3,0.0057276]
[1739151277455,4.13940878,2618.6,2618.3,0.0057276]
[1739151278656,3.2078,2618.4,2618.3,0.0057276]
[1739151284461,3.2078,2618.4,2618.3,2.19253033]
[1739151287867,3.2078,2618.7,2618.3,2.19253033]
[1739151289363,3.2078,2618.7,2618.4,1.7484]
[1739151289871,3.2078,2618.7,2618.4,1.1378]
[1739151290958,3.2078,2618.7,2618.3,0.0057276]
[1739151291162,3.2078,2618.4,2618.3,0.0057276]
[1739151297276,3.21190206,2618.4,2618.3,0.0057276]
[1739151304075,8.09315203,2618.4,2618.3,0.0057276]
[1739151304874,8.09315203,2618.4,2617.9,0.5934]
[1739151304875,13.68762765,2618.4,2617.9,0.5934]
[1739151305081,3.2078,2618.0,2617.5,1.1501]
[1739151305273,3.2078,2618.0,2617.6,0.5682]
[1739151306076,4.17038541,2617.9,2617.6,0.5682]
[1739151310890,3.2078,2617.7,2617.6,0.5682]
[1739151311488,3.2078,2618.0,2617.6,0.5682]